[Event "White Rook U14 Final 2019"]
[Site "Sochi"]
[Date "2019.06.09"]
[Round "8.14"]
[White "Bratov, Ademir"]
[Black "Zhukov, Maksim"]
[Result "1/2-1/2"]
[ECO "B39"]
[WhiteElo "1725"]
[BlackElo "1986"]
[Annotator "NA"]
[PlyCount "94"]
[EventDate "2019.06.02"]
[EventCountry "RUS"]
[SourceTitle "playchess.com"]
[Source "ChessBase"]
[SourceQuality "1"]
[TimeControl "5400+30"]

1. e4 {[%emt 0:00:00]} c5 {[%emt 0:00:00]} 2. Nf3 {[%emt 0:00:00]} Nc6 {[%emt 0:00:00]} 3. d4 {[%emt 0:00:00]} cxd4 {[%emt 0:00:00]} 4. Nxd4 {[%emt 0:00:00]} g6 {[%emt 0:00:00]} 5. c4 {[%emt 0:00:16]} Bg7 {[%emt 0:00:13]} 6. Be3 {[%emt 0:00:38]} Nf6 {[%emt 0:00:10]} 7. Nc3 {[%emt 0:00:00]} Ng4 {[%emt 0:01:40]} 8. Qxg4 {[%emt 0:00:00]} Nxd4 {[%emt 0:00:34]} 9. Qd1 {[%emt 0:00:00]} Ne6 {[%emt 0:00:41]} 10. Qd2 {[%emt 0:00:40]} d6 {[%emt 0:00:49]} 11. Be2 {[%emt 0:01:14]} b6 {[%emt 0:01:12]} 12. O-O {[%emt 0:00:39]} Bb7 {[%emt 0:01:01]} 13. f3 {[%emt 0:02:51]} O-O {[%emt 0:01:32]} 14. Rac1 {[%emt 0:02:07]} a5 {[%emt 0:01:40]} 15. b3 {[%emt 0:02:31]} Nc5 {[%emt 0:01:22]} 16. Rfd1 {[%emt 0:02:54]} f5 {[%emt 0:07:18]} 17. exf5 {[%emt 0:08:19]} gxf5 {[%emt 0:00:26]} 18. Bf1 {[%emt 0:00:55]} Kh8 {[%emt 0:04:45]} 19. Ne2 {[%emt 0:07:46]} Rf6 {[%emt 0:08:48]} 20. Nf4 {[%emt 0:16:32]} e5 {[%emt 0:00:44]} 21. Nd5 {[%emt 0:00:30]} Rg6 {[%emt 0:00:51]} 22. Bd3 {[%emt 0:08:02]} Bxd5 {[%emt 0:05:42]} 23. cxd5 {[%emt 0:02:21]} Qd7 {[%emt 0:02:01]} 24. f4 {[%emt 0:04:12]} Rg8 {[%emt 0:06:45]} 25. Bf1 {[%emt 0:02:44]} e4 {[%emt 0:16:18]} 26. Qc2 {[%emt 0:06:31]} Bf6 {[%emt 0:07:31]} 27. a3 {[%emt 0:02:37]} Qg7 {[%emt 0:02:08]} 28. Rd2 {[%emt 0:01:26]} Nd3 {[%emt 0:01:25]} 29. Bxd3 {[%emt 0:03:51]} exd3 {[%emt 0:00:20]} 30. Qxd3 {[%emt 0:00:34]} Rxg2+ {[%emt 0:00:12]} 31. Kh1 {[%emt 0:01:27]} Rxd2 {[%emt 0:06:08]} 32. Qxd2 {[%emt 0:00:07]} Qg4 {[%emt 0:03:20]} 33. Qf2 {[%emt 0:03:29]} b5 {[%emt 0:01:23]} 34. a4 {[%emt 0:01:44]} bxa4 {[%emt 0:00:00]} 35. bxa4 {[%emt 0:00:04]} h5 {[%emt 0:04:14]} 36. Rg1 {[%emt 0:06:44]} Qh3 {[%emt 0:03:00]} 37. Rxg8+ {[%emt 0:00:11]} Kxg8 {[%emt 0:00:00]} 38. Qg2+ {[%emt 0:00:17]} Qxg2+ {[%emt 0:06:23]} 39. Kxg2 {[%emt 0:00:04]} Bd8 {[%emt 0:00:19]} 40. Ba7 {[%emt 0:00:31]} Kf7 {[%emt 0:01:06]} 41. Kf3 {[%emt 0:00:24]} Ke7 {[%emt 0:00:49]} 42. Ke3 {[%emt 0:00:39]} Kd7 {[%emt 0:00:06]} 43. Kd3 {[%emt 0:00:55]} Kc7 {[%emt 0:00:44]} 44. Kc4 {[%emt 0:00:08]} Kb7 {[%emt 0:00:00]} 45. Bd4 {[%emt 0:00:07]} Bb6 {[%emt 0:02:33]} 46. Bf6 {[%emt 0:00:11]} Be3 {[%emt 0:01:09]} 47. Bg5 {[%emt 0:00:49]} Ka6 {[%emt 0:01:03]} 1/2-1/2

[Event "White Rook U14 Final 2019"]
[Site "Sochi"]
[Date "2019.06.09"]
[Round "8.15"]
[White "Ermolaev, Ivan"]
[Black "Druchenko, Mikhail"]
[Result "0-1"]
[ECO "C56"]
[WhiteElo "1776"]
[BlackElo "1774"]
[Annotator "NA"]
[PlyCount "80"]
[EventDate "2019.06.02"]
[EventCountry "RUS"]
[SourceTitle "playchess.com"]
[Source "ChessBase"]
[SourceQuality "1"]
[TimeControl "5400+30"]

1. e4 {[%emt 0:00:00]} e5 {[%emt 0:00:07]} 2. Nf3 {[%emt 0:00:08]} Nc6 {[%emt 0:00:09]} 3. d4 {[%emt 0:00:16]} exd4 {[%emt 0:00:08]} 4. Bc4 {[%emt 0:00:00]} Bc5 {[%emt 0:00:08]} 5. c3 {[%emt 0:00:16]} Nf6 {[%emt 0:00:08]} 6. e5 {[%emt 0:00:55]} d5 {[%emt 0:00:09]} 7. Bb5 {[%emt 0:03:12]} Ne4 {[%emt 0:00:25]} 8. Nxd4 {[%emt 0:33:49]} O-O {[%emt 0:02:57]} 9. Bxc6 {[%emt 0:01:29]} bxc6 {[%emt 0:00:08]} 10. O-O {[%emt 0:00:07]} Bd7 {[%emt 0:06:42]} 11. f3 {[%emt 0:00:24]} Ng5 {[%emt 0:00:08]} 12. f4 {[%emt 0:00:40]} Ne4 {[%emt 0:00:49]} 13. Be3 {[%emt 0:00:31]} f6 {[%emt 0:03:05]} 14. Nd2 {[%emt 0:01:20]} fxe5 {[%emt 0:06:46]} 15. fxe5 {[%emt 0:00:16]} Nxd2 {[%emt 0:02:05]} 16. Qxd2 {[%emt 0:00:15]} Qe7 {[%emt 0:02:29]} 17. Bf4 {[%emt 0:01:11]} Bb6 {[%emt 0:03:39]} 18. Rae1 {[%emt 0:03:47]} c5 {[%emt 0:02:35]} 19. Nf3 {[%emt 0:04:02]} Be6 {[%emt 0:00:56]} 20. Bg3 {[%emt 0:01:18]} c6 {[%emt 0:00:55]} 21. Bh4 {[%emt 0:11:57]} Qd7 {[%emt 0:01:49]} 22. Kh1 {[%emt 0:03:36]} Rae8 {[%emt 0:03:53]} 23. a3 {[%emt 0:02:08]} c4 {[%emt 0:02:11]} 24. Nd4 {[%emt 0:03:39]} c5 {[%emt 0:00:50]} 25. Nxe6 {[%emt 0:01:24]} Qxe6 {[%emt 0:00:07]} 26. Rxf8+ {[%emt 0:00:28]} Rxf8 {[%emt 0:00:07]} 27. Bf2 {[%emt 0:01:03]} Rf5 {[%emt 0:04:09]} 28. Qe2 {[%emt 0:04:56]} d4 {[%emt 0:06:24]} 29. Bg3 {[%emt 0:02:03]} d3 {[%emt 0:04:08]} 30. Qe4 {[%emt 0:00:25]} h6 {[%emt 0:01:16]} 31. h3 {[%emt 0:04:29]} Bc7 {[%emt 0:14:35]} 32. b3 {[%emt 0:08:06]} d2 {[%emt 0:05:11]} 33. Rd1 {[%emt 0:00:20]} Bxe5 {[%emt 0:00:17]} 34. bxc4 {[%emt 0:05:54]} Qf7 {[%emt 0:05:36]} 35. Rxd2 {[%emt 0:02:36]} Bxg3 {[%emt 0:00:14]} 36. Rd8+ {[%emt 0:00:11]} Kh7 {[%emt 0:00:11]} 37. Rd3 {[%emt 0:00:24]} Qg6 {[%emt 0:00:43]} 38. Rf3 {[%emt 0:00:43]} Rxf3 {[%emt 0:00:18]} 39. gxf3 {[%emt 0:00:11]} Qxe4 {[%emt 0:00:28]} 40. fxe4 {[%emt 0:00:00]} Kg6 {[%emt 0:00:07]} 0-1

[Event "White Rook U14 Final 2019"]
[Site "Sochi"]
[Date "2019.06.09"]
[Round "8.16"]
[White "Kuskova, Ruslana"]
[Black "Kuzmina, Varvara"]
[Result "1/2-1/2"]
[ECO "B38"]
[WhiteElo "1177"]
[BlackElo "1190"]
[Annotator "NA"]
[PlyCount "66"]
[EventDate "2019.06.02"]
[EventCountry "RUS"]
[SourceTitle "playchess.com"]
[Source "ChessBase"]
[SourceQuality "1"]
[TimeControl "5400+30"]

1. e4 {[%emt 0:00:00]} c5 {[%emt 0:00:00]} 2. Nf3 {[%emt 0:00:00]} g6 {[%emt 0:00:00]} 3. d4 {[%emt 0:00:00]} cxd4 {[%emt 0:00:02]} 4. Nxd4 {[%emt 0:00:00]} Bg7 {[%emt 0:00:00]} 5. c4 {[%emt 0:00:00]} Nc6 {[%emt 0:00:29]} 6. Be3 {[%emt 0:00:27]} Nf6 {[%emt 0:00:17]} 7. Nc3 {[%emt 0:00:56]} O-O {[%emt 0:00:00]} 8. Be2 {[%emt 0:00:00]} d6 {[%emt 0:01:03]} 9. O-O {[%emt 0:00:00]} Bd7 {[%emt 0:00:27]} 10. Qd2 {[%emt 0:00:17]} Rb8 {[%emt 0:00:17]} 11. b3 {[%emt 0:12:52]} Qa5 {[%emt 0:05:55]} 12. f3 {[%emt 0:02:57]} Nxd4 {[%emt 0:04:56]} 13. Bxd4 {[%emt 0:01:07]} Ne8 {[%emt 0:01:54]} 14. Rac1 {[%emt 0:07:13]} Bxd4+ {[%emt 0:01:40]} 15. Qxd4 {[%emt 0:00:14]} Qc5 {[%emt 0:03:05]} 16. Qxc5 {[%emt 0:01:52]} dxc5 {[%emt 0:00:15]} 17. Rfd1 {[%emt 0:00:45]} Bc6 {[%emt 0:00:23]} 18. Nd5 {[%emt 0:01:36]} Bxd5 {[%emt 0:00:13]} 19. exd5 {[%emt 0:09:41]} Nd6 {[%emt 0:03:46]} 20. Bd3 {[%emt 0:03:14]} a5 {[%emt 0:01:17]} 21. a4 {[%emt 0:00:49]} Rfe8 {[%emt 0:01:58]} 22. Re1 {[%emt 0:03:21]} e6 {[%emt 0:02:45]} 23. dxe6 {[%emt 0:02:49]} Rxe6 {[%emt 0:01:08]} 24. Rxe6 {[%emt 0:00:45]} fxe6 {[%emt 0:00:00]} 25. Re1 {[%emt 0:01:34]} Re8 {[%emt 0:00:00]} 26. Kf2 {[%emt 0:06:41]} b6 {[%emt 0:00:43]} 27. Re3 {[%emt 0:09:14]} Kf7 {[%emt 0:04:39]} 28. f4 {[%emt 0:09:56]} Nf5 {[%emt 0:01:55]} 29. Bxf5 {[%emt 0:00:16]} exf5 {[%emt 0:00:12]} 30. Rxe8 {[%emt 0:09:28]} Kxe8 {[%emt 0:00:07]} 31. Kf3 {[%emt 0:01:28]} Kf7 {[%emt 0:00:11]} 32. h3 {[%emt 0:01:24]} h5 {[%emt 0:04:31]} 33. h4 {[%emt 0:04:10]} Kf6 {[%emt 0:00:00]} 1/2-1/2

[Event "White Rook U14 Final 2019"]
[Site "Sochi"]
[Date "2019.06.09"]
[Round "8.17"]
[White "Gashev, Matvei"]
[Black "Morozov, Gennady"]
[Result "0-1"]
[ECO "E84"]
[WhiteElo "1968"]
[BlackElo "1997"]
[Annotator "NA"]
[PlyCount "101"]
[EventDate "2019.06.02"]
[EventCountry "RUS"]
[SourceTitle "playchess.com"]
[Source "ChessBase"]
[SourceQuality "1"]
[TimeControl "5400+30"]

1. d4 {[%emt 0:00:00]} Nf6 {[%emt 0:00:00]} 2. c4 {[%emt 0:00:00]} g6 {[%emt 0:00:00]} 3. f3 {[%emt 0:00:00]} Bg7 {[%emt 0:00:00]} 4. e4 {[%emt 0:00:00]} O-O {[%emt 0:00:00]} 5. Nc3 {[%emt 0:00:00]} d6 {[%emt 0:00:00]} 6. Be3 {[%emt 0:00:00]} Nc6 {[%emt 0:00:00]} 7. Nge2 {[%emt 0:00:00]} a6 {[%emt 0:00:41]} 8. Qd2 {[%emt 0:00:00]} Rb8 {[%emt 0:00:46]} 9. Nc1 {[%emt 0:00:05]} Re8 {[%emt 0:01:54]} 10. Nb3 {[%emt 0:00:11]} Bd7 {[%emt 0:05:05]} 11. Be2 {[%emt 0:01:03]} e5 {[%emt 0:02:06]} 12. d5 {[%emt 0:00:08]} Ne7 {[%emt 0:06:50]} 13. c5 {[%emt 0:00:00]} Nh5 {[%emt 0:00:45]} 14. O-O-O {[%emt 0:01:37]} Nf4 {[%emt 0:01:35]} 15. Rdg1 {[%emt 0:03:25]} Nc8 {[%emt 0:03:16]} 16. h4 {[%emt 0:00:50]} dxc5 {[%emt 0:00:43]} 17. Nxc5 {[%emt 0:01:16]} Nd6 {[%emt 0:00:44]} 18. Nxd7 {[%emt 0:08:44]} Qxd7 {[%emt 0:00:11]} 19. Bf1 {[%emt 0:00:28]} b5 {[%emt 0:01:21]} 20. g3 {[%emt 0:01:03]} Nh5 {[%emt 0:00:13]} 21. Bh3 {[%emt 0:03:01]} Qe7 {[%emt 0:02:42]} 22. Bg5 {[%emt 0:03:00]} f6 {[%emt 0:01:55]} 23. Be6+ {[%emt 0:00:40]} Kh8 {[%emt 0:00:19]} 24. g4 {[%emt 0:18:49]} Nc4 {[%emt 0:22:05]} 25. Qc2 {[%emt 0:07:16]} Nf4 {[%emt 0:10:49]} 26. Bxf4 {[%emt 0:00:28]} exf4 {[%emt 0:00:34]} 27. g5 {[%emt 0:13:04]} b4 {[%emt 0:04:02]} 28. Na4 {[%emt 0:00:13]} Ne5 {[%emt 0:00:33]} 29. h5 {[%emt 0:10:28]} fxg5 {[%emt 0:00:51]} 30. hxg6 {[%emt 0:00:12]} h6 {[%emt 0:01:23]} 31. Rh3 {[%emt 0:10:38]} Qf6 {[%emt 0:15:16]} 32. Nc5 {[%emt 0:04:06]} Rb6 {[%emt 0:03:33]} 33. Bf5 {[%emt 0:02:35]} Kg8 {[%emt 0:08:21]} 34. Rg2 {[%emt 0:01:29]} Reb8 {[%emt 0:01:11]} 35. b3 {[%emt 0:02:01]} Rd6 {[%emt 0:01:52]} 36. Ne6 {[%emt 0:01:56]} c6 {[%emt 0:01:00]} 37. Nxg7 {[%emt 0:01:14]} Kxg7 {[%emt 0:00:33]} 38. Kb1 {[%emt 0:04:04]} Nxg6 {[%emt 0:02:32]} 39. Qc4 {[%emt 0:00:49]} Re8 {[%emt 0:01:01]} 40. Qxb4 {[%emt 0:01:12]} cxd5 {[%emt 0:00:14]} 41. Rd2 {[%emt 0:01:14]} d4 {[%emt 0:02:25]} 42. Rh1 {[%emt 0:01:27]} Ne5 {[%emt 0:00:20]} 43. Rhd1 {[%emt 0:00:27]} Nxf3 {[%emt 0:00:48]} 44. Rd3 {[%emt 0:00:33]} Nh4 {[%emt 0:00:36]} 45. Bg4 {[%emt 0:00:59]} Rxe4 {[%emt 0:00:00]} 46. Qb8 {[%emt 0:01:20]} Re7 {[%emt 0:00:28]} 47. Rc1 {[%emt 0:00:22]} Rc6 {[%emt 0:00:37]} 48. Rxc6 {[%emt 0:00:53]} Qxc6 {[%emt 0:00:00]} 49. Qd8 {[%emt 0:00:16]} Rc7 {[%emt 0:01:14]} 50. Qxd4+ {[%emt 0:00:00]} Qf6 {[%emt 0:00:19]} 51. Qb4 {[%emt 0:01:24]} 0-1

[Event "White Rook U14 Final 2019"]
[Site "Sochi"]
[Date "2019.06.09"]
[Round "8.18"]
[White "Ermakov, Maksim"]
[Black "Kharitonov, Maksim"]
[Result "1/2-1/2"]
[ECO "A85"]
[WhiteElo "1623"]
[BlackElo "1469"]
[Annotator "NA"]
[PlyCount "71"]
[EventDate "2019.06.02"]
[EventCountry "RUS"]
[SourceTitle "playchess.com"]
[Source "ChessBase"]
[SourceQuality "1"]
[TimeControl "5400+30"]

1. d4 {[%emt 0:00:00]} f5 {[%emt 0:00:00]} 2. Nf3 {[%emt 0:00:00]} Nf6 {[%emt 0:00:00]} 3. e3 {[%emt 0:00:00]} g6 {[%emt 0:00:00]} 4. c4 {[%emt 0:00:21]} Bg7 {[%emt 0:00:00]} 5. Nc3 {[%emt 0:00:07]} d6 {[%emt 0:00:01]} 6. Bd3 {[%emt 0:00:00]} O-O {[%emt 0:00:10]} 7. O-O {[%emt 0:00:17]} Qe8 {[%emt 0:03:32]} 8. Nd5 {[%emt 0:00:16]} Na6 {[%emt 0:06:01]} 9. Nxf6+ {[%emt 0:00:25]} Bxf6 {[%emt 0:01:29]} 10. d5 {[%emt 0:01:54]} Nc5 {[%emt 0:00:09]} 11. Be2 {[%emt 0:01:31]} a5 {[%emt 0:02:33]} 12. Rb1 {[%emt 0:04:14]} Bd7 {[%emt 0:04:03]} 13. Nd4 {[%emt 0:01:28]} Qf7 {[%emt 0:28:11]} 14. b3 {[%emt 0:01:14]} c6 {[%emt 0:09:41]} 15. Bb2 {[%emt 0:00:00]} Ne4 {[%emt 0:03:37]} 16. f3 {[%emt 0:05:55]} Nc5 {[%emt 0:06:18]} 17. Qd2 {[%emt 0:04:29]} Qg7 {[%emt 0:03:13]} 18. Rfe1 {[%emt 0:01:39]} Na6 {[%emt 0:01:27]} 19. Bf1 {[%emt 0:00:30]} Nc7 {[%emt 0:01:42]} 20. e4 {[%emt 0:01:06]} f4 {[%emt 0:00:17]} 21. Ne2 {[%emt 0:02:08]} g5 {[%emt 0:02:50]} 22. Bxf6 {[%emt 0:01:24]} Rxf6 {[%emt 0:00:00]} 23. Nd4 {[%emt 0:06:27]} c5 {[%emt 0:00:00]} 24. Nc2 {[%emt 0:01:13]} Rh6 {[%emt 0:03:54]} 25. e5 {[%emt 0:04:51]} b6 {[%emt 0:03:02]} 26. exd6 {[%emt 0:01:26]} exd6 {[%emt 0:00:09]} 27. Re2 {[%emt 0:00:29]} Re8 {[%emt 0:00:26]} 28. Rbe1 {[%emt 0:00:44]} Rxe2 {[%emt 0:00:40]} 29. Qxe2 {[%emt 0:00:00]} Bf5 {[%emt 0:02:03]} 30. Na3 {[%emt 0:01:29]} Rf6 {[%emt 0:02:07]} 31. Nb1 {[%emt 0:03:05]} Rf8 {[%emt 0:00:47]} 32. Qd2 {[%emt 0:05:16]} Re8 {[%emt 0:01:11]} 33. Rxe8+ {[%emt 0:00:25]} Nxe8 {[%emt 0:00:05]} 34. Nc3 {[%emt 0:01:29]} Nc7 {[%emt 0:02:29]} 35. Na4 {[%emt 0:00:00]} Na8 {[%emt 0:01:15]} 36. Kf2 {[%emt 0:05:38]} 1/2-1/2

[Event "White Rook U14 Final 2019"]
[Site "Sochi"]
[Date "2019.06.09"]
[Round "8.20"]
[White "Korovina, Yana"]
[Black "Belova, Darya"]
[Result "1-0"]
[ECO "B01"]
[WhiteElo "1672"]
[BlackElo "1163"]
[Annotator "NA"]
[PlyCount "120"]
[EventDate "2019.06.02"]
[EventCountry "RUS"]
[SourceTitle "playchess.com"]
[Source "ChessBase"]
[SourceQuality "1"]
[TimeControl "5400+30"]

1. e4 {[%emt 0:00:00]} d5 {[%emt 0:00:00]} 2. exd5 {[%emt 0:00:00]} Qxd5 {[%emt 0:00:00]} 3. Nc3 {[%emt 0:00:00]} Qa5 {[%emt 0:00:00]} 4. d4 {[%emt 0:00:00]} c6 {[%emt 0:00:00]} 5. Nf3 {[%emt 0:01:36]} Nf6 {[%emt 0:00:00]} 6. Be2 {[%emt 0:04:03]} Bf5 {[%emt 0:00:00]} 7. O-O {[%emt 0:00:57]} e6 {[%emt 0:00:00]} 8. Bf4 {[%emt 0:02:05]} Be7 {[%emt 0:03:35]} 9. Ne5 {[%emt 0:01:21]} O-O {[%emt 0:04:49]} 10. Nc4 {[%emt 0:05:46]} Qd8 {[%emt 0:00:54]} 11. Qd2 {[%emt 0:05:05]} Nbd7 {[%emt 0:09:31]} 12. Bd6 {[%emt 0:03:30]} Nd5 {[%emt 0:00:31]} 13. Bxe7 {[%emt 0:01:37]} Qxe7 {[%emt 0:00:18]} 14. Ne3 {[%emt 0:05:19]} Bg6 {[%emt 0:03:44]} 15. Rfe1 {[%emt 0:03:57]} N7f6 {[%emt 0:05:20]} 16. Bf3 {[%emt 0:02:31]} Rad8 {[%emt 0:06:07]} 17. Ncxd5 {[%emt 0:03:27]} cxd5 {[%emt 0:01:33]} 18. b3 {[%emt 0:04:49]} Qc7 {[%emt 0:05:52]} 19. c4 {[%emt 0:03:25]} Be4 {[%emt 0:09:49]} 20. Bxe4 {[%emt 0:02:35]} Nxe4 {[%emt 0:00:54]} 21. Qd3 {[%emt 0:01:15]} Nf6 {[%emt 0:11:39]} 22. Rac1 {[%emt 0:02:24]} Qa5 {[%emt 0:07:16]} 23. c5 {[%emt 0:02:11]} a6 {[%emt 0:13:34]} 24. b4 {[%emt 0:08:10]} Qc7 {[%emt 0:01:00]} 25. a4 {[%emt 0:04:57]} Ra8 {[%emt 0:06:22]} 26. Rb1 {[%emt 0:03:32]} Ne4 {[%emt 0:02:33]} 27. Ng4 {[%emt 0:03:08]} Qf4 {[%emt 0:02:06]} 28. f3 {[%emt 0:03:09]} Rfd8 {[%emt 0:02:38]} 29. Ne5 {[%emt 0:03:58]} Nf6 {[%emt 0:01:27]} 30. Re2 {[%emt 0:01:28]} Nd7 {[%emt 0:00:25]} 31. Nxd7 {[%emt 0:01:54]} Rxd7 {[%emt 0:00:05]} 32. b5 {[%emt 0:00:17]} axb5 {[%emt 0:00:30]} 33. axb5 {[%emt 0:00:35]} Qc7 {[%emt 0:00:41]} 34. Rc2 {[%emt 0:01:10]} b6 {[%emt 0:01:21]} 35. cxb6 {[%emt 0:02:24]} Qxb6 {[%emt 0:00:00]} 36. Rc6 {[%emt 0:03:32]} Qb7 {[%emt 0:00:00]} 37. Qc2 {[%emt 0:00:00]} h6 {[%emt 0:00:50]} 38. b6 {[%emt 0:00:56]} Rb8 {[%emt 0:00:04]} 39. Rb2 {[%emt 0:00:04]} Qa6 {[%emt 0:00:55]} 40. b7 {[%emt 0:00:30]} Qa1+ {[%emt 0:00:03]} 41. Kf2 {[%emt 0:00:58]} Qa7 {[%emt 0:00:29]} 42. Rc8+ {[%emt 0:00:33]} Rd8 {[%emt 0:00:17]} 43. Qc7 {[%emt 0:00:00]} Qxd4+ {[%emt 0:00:37]} 44. Kg3 {[%emt 0:00:00]} Rbxc8 {[%emt 0:00:34]} 45. bxc8=Q {[%emt 0:00:00]} Rxc8 {[%emt 0:00:00]} 46. Qxc8+ {[%emt 0:00:06]} Kh7 {[%emt 0:00:00]} 47. Qc2+ {[%emt 0:00:33]} g6 {[%emt 0:00:21]} 48. Rb3 {[%emt 0:00:33]} Qe5+ {[%emt 0:00:11]} 49. f4 {[%emt 0:00:04]} Qe1+ {[%emt 0:00:36]} 50. Qf2 {[%emt 0:00:31]} Qd1 {[%emt 0:00:33]} 51. Rb7 {[%emt 0:00:30]} Qd3+ {[%emt 0:00:06]} 52. Qf3 {[%emt 0:01:03]} Qf5 {[%emt 0:00:29]} 53. Kf2 {[%emt 0:00:00]} Qc2+ {[%emt 0:00:02]} 54. Kg1 {[%emt 0:00:29]} Qc1+ {[%emt 0:00:16]} 55. Qf1 {[%emt 0:00:49]} Qe3+ {[%emt 0:00:31]} 56. Kh1 {[%emt 0:00:01]} Kg7 {[%emt 0:00:33]} 57. Qa1+ {[%emt 0:00:30]} d4 {[%emt 0:00:52]} 58. Rb4 {[%emt 0:00:30]} Qxf4 {[%emt 0:00:35]} 59. Qxd4+ {[%emt 0:00:31]} Qxd4 {[%emt 0:00:26]} 60. Rxd4 {[%emt 0:00:00]} Kf6 {[%emt 0:00:00]} 1-0

[Event "White Rook U14 Final 2019"]
[Site "Sochi"]
[Date "2019.06.09"]
[Round "8.21"]
[White "Kuzmin, Roman"]
[Black "Balashov, Arseny"]
[Result "1-0"]
[ECO "B32"]
[WhiteElo "2119"]
[BlackElo "1990"]
[Annotator "NA"]
[PlyCount "81"]
[EventDate "2019.06.02"]
[EventCountry "RUS"]
[SourceTitle "playchess.com"]
[Source "ChessBase"]
[SourceQuality "1"]
[TimeControl "5400+30"]

1. e4 {[%emt 0:00:00]} c5 {[%emt 0:00:00]} 2. Nf3 {[%emt 0:00:00]} Nc6 {[%emt 0:00:00]} 3. d4 {[%emt 0:00:00]} cxd4 {[%emt 0:00:00]} 4. Nxd4 {[%emt 0:00:00]} e5 {[%emt 0:00:00]} 5. Nb5 {[%emt 0:00:00]} a6 {[%emt 0:00:00]} 6. Nd6+ {[%emt 0:00:00]} Bxd6 {[%emt 0:00:00]} 7. Qxd6 {[%emt 0:00:00]} Qe7 {[%emt 0:00:00]} 8. Qd1 {[%emt 0:04:40]} Nf6 {[%emt 0:00:00]} 9. Nc3 {[%emt 0:00:00]} d6 {[%emt 0:00:00]} 10. Bc4 {[%emt 0:09:27]} Be6 {[%emt 0:03:52]} 11. Nd5 {[%emt 0:01:35]} Bxd5 {[%emt 0:03:05]} 12. Bxd5 {[%emt 0:01:28]} Nxd5 {[%emt 0:09:34]} 13. Qxd5 {[%emt 0:00:06]} Nd4 {[%emt 0:01:35]} 14. O-O {[%emt 0:04:20]} Rc8 {[%emt 0:07:25]} 15. a3 {[%emt 0:07:59]} Rc5 {[%emt 0:18:39]} 16. Qa2 {[%emt 0:00:09]} Rxc2 {[%emt 0:00:02]} 17. Be3 {[%emt 0:01:26]} Qe6 {[%emt 0:13:37]} 18. Bxd4 {[%emt 0:03:26]} exd4 {[%emt 0:05:17]} 19. Qb1 {[%emt 0:05:20]} Qc4 {[%emt 0:00:42]} 20. Qd1 {[%emt 0:29:28]} d3 {[%emt 0:02:05]} 21. b4 {[%emt 0:13:29]} Qxe4 {[%emt 0:03:45]} 22. Re1 {[%emt 0:00:23]} Re2 {[%emt 0:00:01]} 23. Kf1 {[%emt 0:00:06]} Kd7 {[%emt 0:11:22]} 24. Rxe2 {[%emt 0:00:07]} dxe2+ {[%emt 0:00:31]} 25. Qxe2 {[%emt 0:00:07]} Re8 {[%emt 0:00:00]} 26. Qa2 {[%emt 0:03:01]} Qd3+ {[%emt 0:04:24]} 27. Kg1 {[%emt 0:00:07]} Re6 {[%emt 0:00:58]} 28. h3 {[%emt 0:02:39]} Qc3 {[%emt 0:02:33]} 29. Kh2 {[%emt 0:00:42]} Qe5+ {[%emt 0:00:02]} 30. Kg1 {[%emt 0:00:07]} Qe2 {[%emt 0:00:12]} 31. Qd5 {[%emt 0:00:07]} Qe4 {[%emt 0:00:24]} 32. Qb3 {[%emt 0:00:35]} d5 {[%emt 0:04:01]} 33. Rd1 {[%emt 0:01:02]} Rd6 {[%emt 0:00:00]} 34. b5 {[%emt 0:00:00]} Qc4 {[%emt 0:00:54]} 35. Qf3 {[%emt 0:00:48]} Ke7 {[%emt 0:02:05]} 36. bxa6 {[%emt 0:00:00]} bxa6 {[%emt 0:00:00]} 37. Qe3+ {[%emt 0:00:00]} Qe4 {[%emt 0:03:57]} 38. Qd2 {[%emt 0:03:45]} Kf8 {[%emt 0:00:53]} 39. Re1 {[%emt 0:00:16]} Qa4 {[%emt 0:01:01]} 40. Qd3 {[%emt 0:02:36]} Kg8 {[%emt 0:03:15]} 41. Qb3 {[%emt 0:00:52]} 1-0

[Event "White Rook U14 Final 2019"]
[Site "Sochi"]
[Date "2019.06.09"]
[Round "8.22"]
[White "Mikheev, Arsenii E."]
[Black "Pingin, Artem"]
[Result "0-1"]
[ECO "B51"]
[WhiteElo "1500"]
[BlackElo "2108"]
[Annotator "NA"]
[PlyCount "88"]
[EventDate "2019.06.02"]
[EventCountry "RUS"]
[SourceTitle "playchess.com"]
[Source "ChessBase"]
[SourceQuality "1"]
[TimeControl "5400+30"]

1. e4 {[%emt 0:00:00]} c5 {[%emt 0:00:00]} 2. Nf3 {[%emt 0:00:00]} d6 {[%emt 0:00:00]} 3. Bb5+ {[%emt 0:00:00]} Nd7 {[%emt 0:00:00]} 4. d4 {[%emt 0:00:00]} cxd4 {[%emt 0:00:00]} 5. Qxd4 {[%emt 0:00:00]} a6 {[%emt 0:00:00]} 6. Bxd7+ {[%emt 0:00:00]} Bxd7 {[%emt 0:00:00]} 7. c4 {[%emt 0:00:00]} e5 {[%emt 0:00:00]} 8. Qd3 {[%emt 0:00:00]} h6 {[%emt 0:00:44]} 9. Nc3 {[%emt 0:00:00]} Nf6 {[%emt 0:00:06]} 10. O-O {[%emt 0:00:00]} Be7 {[%emt 0:00:06]} 11. h3 {[%emt 0:00:34]} O-O {[%emt 0:00:09]} 12. a4 {[%emt 0:00:19]} a5 {[%emt 0:13:00]} 13. b3 {[%emt 0:11:30]} Be6 {[%emt 0:10:57]} 14. Ba3 {[%emt 0:00:44]} Nh5 {[%emt 0:12:46]} 15. Ne2 {[%emt 0:01:39]} Qc7 {[%emt 0:02:42]} 16. Rfd1 {[%emt 0:00:00]} Ra6 {[%emt 0:02:39]} 17. Rac1 {[%emt 0:05:47]} g6 {[%emt 0:02:25]} 18. Nh2 {[%emt 0:04:17]} Kh7 {[%emt 0:06:39]} 19. Nf1 {[%emt 0:01:12]} f5 {[%emt 0:07:08]} 20. Nfg3 {[%emt 0:16:46]} Nxg3 {[%emt 0:00:45]} 21. Nxg3 {[%emt 0:09:08]} f4 {[%emt 0:00:35]} 22. Nf1 {[%emt 0:02:20]} f3 {[%emt 0:04:58]} 23. g4 {[%emt 0:00:00]} h5 {[%emt 0:00:16]} 24. Ne3 {[%emt 0:00:06]} hxg4 {[%emt 0:01:46]} 25. hxg4 {[%emt 0:00:06]} Qc8 {[%emt 0:01:57]} 26. Kf1 {[%emt 0:00:31]} Bxg4 {[%emt 0:05:38]} 27. Ke1 {[%emt 0:00:48]} Be6 {[%emt 0:02:43]} 28. Kd2 {[%emt 0:01:10]} Rf4 {[%emt 0:04:09]} 29. Kc2 {[%emt 0:00:27]} Qc6 {[%emt 0:02:08]} 30. Rh1+ {[%emt 0:01:22]} Kg7 {[%emt 0:01:29]} 31. Nd5 {[%emt 0:02:34]} Bxd5 {[%emt 0:00:07]} 32. exd5 {[%emt 0:00:15]} Qd7 {[%emt 0:00:23]} 33. Rcg1 {[%emt 0:00:22]} Qf5 {[%emt 0:00:37]} 34. Qxf5 {[%emt 0:00:19]} Rxf5 {[%emt 0:00:01]} 35. Kd3 {[%emt 0:00:10]} Ra8 {[%emt 0:02:42]} 36. Rg3 {[%emt 0:00:45]} Rf4 {[%emt 0:07:03]} 37. Rhh3 {[%emt 0:00:22]} g5 {[%emt 0:03:50]} 38. Ke3 {[%emt 0:01:33]} g4 {[%emt 0:00:00]} 39. Rh1 {[%emt 0:01:30]} Kg6 {[%emt 0:02:27]} 40. Rb1 {[%emt 0:00:23]} Kf5 {[%emt 0:01:46]} 41. Rh1 {[%emt 0:00:12]} Re4+ {[%emt 0:00:24]} 42. Kd3 {[%emt 0:00:45]} Re2 {[%emt 0:00:05]} 43. Rh7 {[%emt 0:00:00]} e4+ {[%emt 0:00:08]} 44. Kc3 {[%emt 0:00:27]} Bf6# {[%emt 0:00:54]} 0-1